fUST/lending_fUST_20250613
["ID","MTS","AMOUNT","RATE_DAILY","PERIOD"]
[365664565,1749825046030,-811.37130266,0.00021095,4]
[365664568,1749825046044,-309.09869734,0.00021095,4]
[365664570,1749825046054,-695.28,0.00021369,4]
[365664572,1749825046063,-1120.47,0.00021369,4]
[365664574,1749825046072,-695.28,0.00021643,4]
[365664576,1749825046082,-1120.47,0.00021643,4]
[365664578,1749825046092,-3327.95086905,0.00022007,2]
[365672611,1749825648654,-4859.0,0.00019831,6]
[365673848,1749825887750,160.954004,0.00013699,2]
[365673855,1749826099807,-500.0,0.000189,2]
[365673896,1749826232034,-8.50495877,0.000189,2]
[365673899,1749826232044,-176.747853,0.00020031,2]
[365673900,1749826232054,-300.0,0.00020048,2]
[365673903,1749826232063,-10530.74718823,0.00020049,2]
[365673912,1749826232147,-2276.54990254,0.00020049,2]
[365673915,1749826232159,-12092.70290923,0.00020049,2]
[365673917,1749826232169,-184.0467144,0.00020293,2]
[365673919,1749826232179,-500.0,0.00020964,2]
[365673921,1749826232188,-447.50819116,0.00020995,2]
[365673923,1749826232198,-5000.0,0.00021,4]
[365673926,1749826232207,-179.836,0.00021094,2]
[365673929,1749826232216,-300.0,0.00021094,2]
[365673932,1749826232226,-440.0,0.00021095,4]
[365673935,1749826232235,-440.0,0.00021095,4]
[365673938,1749826232244,-578.04,0.00021095,4]
[365673940,1749826232254,-290.03389082,0.00021095,4]
[365673942,1749826232263,-460.0,0.00021095,4]
[365673944,1749826232273,-460.0,0.00021095,4]
[365673946,1749826232282,-460.0,0.00021095,4]
[365673948,1749826232292,-460.0,0.00021095,4]
[365673950,1749826232301,-440.0,0.00021095,4]
[365673952,1749826232311,-326.4,0.00021095,4]
[365673954,1749826232320,-460.0,0.00021095,4]
[365673956,1749826232329,-460.0,0.00021095,4]
[365673958,1749826232338,-440.0,0.00021095,4]
[365673960,1749826232347,-440.0,0.00021095,4]
[365673963,1749826232358,-460.0,0.00021095,4]
[365673965,1749826232378,-430.0,0.00021095,4]
[365673967,1749826232389,-300.0,0.00021095,4]
[365673969,1749826232400,-440.0,0.00021095,4]
[365673971,1749826232410,-440.0,0.00021095,4]
[365673973,1749826232420,-440.0,0.00021095,4]
[365673975,1749826232429,-264.35051329,0.00021095,4]
[365673977,1749826232439,-440.0,0.00021095,4]
[365673979,1749826232448,-460.0,0.00021095,4]
[365673981,1749826232458,-460.0,0.00021095,4]
[365673983,1749826232467,-460.0,0.00021095,4]
[365673986,1749826232477,-460.0,0.00021095,4]
[365673988,1749826232486,-460.0,0.00021095,4]
[365673990,1749826232496,-320.0,0.00021095,4]
[365673992,1749826232505,-460.0,0.00021095,4]
[365673994,1749826232515,-460.0,0.00021095,4]
[365673996,1749826232525,-460.0,0.00021095,4]
[365673998,1749826232534,-460.0,0.00021095,4]
[365674000,1749826232543,-460.0,0.00021095,4]
[365674002,1749826232553,-460.0,0.00021095,4]
[365674004,1749826232563,-460.0,0.00021095,4]
[365674006,1749826232573,-460.0,0.00021095,4]
[365674008,1749826232582,-460.0,0.00021095,4]
[365674010,1749826232592,-634.8,0.00021095,4]
[365674012,1749826232602,-460.0,0.00021095,4]
[365674014,1749826232611,-1503.17,0.00021095,4]
[365674016,1749826232622,-460.0,0.00021095,4]
[365674019,1749826232632,-460.0,0.00021095,4]
[365674021,1749826232642,-460.0,0.00021095,4]
[365674023,1749826232651,-552.25508162,0.00021095,4]
[365674024,1749826232661,-460.0,0.00021095,4]
[365674026,1749826232671,-460.0,0.00021095,4]
[365674028,1749826232680,-460.0,0.00021095,4]
[365674030,1749826232690,-460.0,0.00021095,4]
[365674032,1749826232700,-1801.51,0.00021095,4]
[365674034,1749826232710,-460.0,0.00021095,4]
[365674037,1749826232719,-460.0,0.00021095,4]
[365674039,1749826232729,-320.0,0.00021095,4]
[365674041,1749826232739,-500.0,0.00021095,4]
[365674043,1749826232748,-460.0,0.00021095,4]
[365674045,1749826232758,-460.0,0.00021095,4]
[365674047,1749826232768,-460.0,0.00021095,4]
[365674049,1749826232778,-676.01,0.00021095,4]
[365674050,1749826232788,-460.0,0.00021095,4]
[365674051,1749826232797,-460.0,0.00021095,4]
[365674052,1749826232807,-668.56,0.00021095,4]
[365674053,1749826232816,-460.0,0.00021095,4]
[365674054,1749826232826,-460.0,0.00021095,4]
[365674055,1749826232835,-633.8989831,0.00021095,4]
[365674056,1749826232845,-460.0,0.00021095,4]
[365674057,1749826232856,-1356.31,0.00021095,4]
[365674058,1749826232866,-320.0,0.00021095,4]
[365674059,1749826232875,-460.0,0.00021095,4]
[365674060,1749826232884,-460.0,0.00021095,4]
[365674061,1749826232894,-310.0,0.00021095,4]
[365674062,1749826232904,-460.0,0.00021095,4]
[365674063,1749826232917,-460.0,0.00021095,4]
[365674064,1749826232926,-460.0,0.00021095,4]
[365674065,1749826232936,-412.0501649,0.00021095,4]
[365674066,1749826232945,-2133.31,0.00021095,4]
[365674067,1749826232955,-460.0,0.00021095,4]
[365674068,1749826232964,-460.0,0.00021095,4]
[365674069,1749826232974,-1037.02,0.00021095,4]
[365674070,1749826232983,-460.0,0.00021095,4]
[365674071,1749826232997,-460.0,0.00021095,4]
[365674072,1749826233007,-993.62,0.00021095,4]
[365674073,1749826233017,-460.0,0.00021095,4]
[365674074,1749826233026,-440.0,0.00021095,4]
[365674075,1749826233036,-460.0,0.00021095,4]
[365674076,1749826233046,-618.38,0.00021095,4]
[365674077,1749826233055,-187.35,0.00021095,4]
[365674078,1749826233065,-460.0,0.00021095,4]
[365674079,1749826233075,-460.0,0.00021095,4]
[365674080,1749826233236,-460.0,0.00021095,4]
[365674081,1749826233247,-1134.76,0.00021095,4]
[365674082,1749826233260,-460.0,0.00021095,2]
[365674083,1749826233270,-460.0,0.00021095,4]
[365674084,1749826233280,-1471.45,0.00021095,4]
[365674085,1749826233290,-460.0,0.00021095,4]
[365674086,1749826233300,-159.86675572,0.00021149,4]
[365674087,1749826233309,-160.23114879,0.00021149,4]
[365674088,1749826233319,-151.55406237,0.00021149,4]
[365674089,1749826233328,-153.32526386,0.00021149,4]
[365674090,1749826233338,-153.33644207,0.00021149,4]
[365674091,1749826233347,-151.82952293,0.00021149,4]
[365674092,1749826233359,-1917.94039966,0.00021293,2]
[365674093,1749826233369,-173.46,0.00021356,10]
[365674094,1749826233379,-330.78,0.00021356,10]
[365674095,1749826233389,-156.23164914,0.00021366,2]
[365674096,1749826233400,-511.93149168,0.00021366,2]
[365674097,1749826233409,-500.0,0.00021366,2]
[365674098,1749826233419,-500.0,0.00021366,2]
[365674099,1749826233429,-500.0,0.00021366,2]
[365674100,1749826233439,-500.0,0.00021366,2]
[365674101,1749826233448,-183.06415942,0.00021366,2]
[365674102,1749826233458,-500.0,0.00021366,2]
[365674103,1749826233467,-500.0,0.00021366,2]
[365674104,1749826233477,-500.0,0.00021366,2]
[365674105,1749826233487,-500.0,0.00021366,2]
[365674106,1749826233496,-500.0,0.00021366,2]
[365674107,1749826233505,-500.0,0.00021366,2]
[365674108,1749826233515,-239.96309866,0.00021366,2]
[365674109,1749826233524,-500.0,0.00021366,2]
[365674110,1749826233534,-500.0,0.00021366,2]
[365674111,1749826233551,-500.0,0.00021366,2]
[365674112,1749826233562,-500.0,0.00021366,2]
[365674113,1749826233572,-500.0,0.00021366,2]
[365674114,1749826233581,-500.0,0.00021366,2]
[365674115,1749826233591,-500.0,0.00021366,2]
[365674116,1749826233602,-326.80340109,0.00021366,2]
[365674168,1749826238169,-1777.83,0.00021095,4]
[365674170,1749826238179,-16000.0,0.00021355,2]
[365674172,1749826238189,-420.0,0.00021369,4]
[365674174,1749826238198,-216.30243607,0.00021369,4]
[365674176,1749826238208,-280.0,0.00021369,4]
[365674178,1749826238217,-460.0,0.00021369,4]
[365674180,1749826238227,-460.0,0.00021369,4]
[365674182,1749826238236,-460.0,0.00021369,4]
[365674184,1749826238246,-420.0,0.00021369,4]
[365674186,1749826238255,-460.0,0.00021369,4]
[365674188,1749826238265,-460.0,0.00021369,4]
[365674190,1749826238274,-460.0,0.00021369,4]
[365674192,1749826238283,-486.26,0.00021369,4]
[365674194,1749826238293,-460.0,0.00021369,4]
[365674196,1749826238302,-460.0,0.00021369,4]
[365674198,1749826238311,-460.0,0.00021369,4]
[365674200,1749826238320,-460.0,0.00021369,4]
[365674202,1749826238330,-420.0,0.00021369,4]
[365674204,1749826238339,-460.0,0.00021369,4]
[365674206,1749826238348,-460.0,0.00021369,4]
[365674208,1749826238360,-460.0,0.00021369,4]
[365674211,1749826238370,-486.6468637,0.00021369,4]
[365674213,1749826238379,-460.0,0.00021369,4]
[365674215,1749826238390,-634.8,0.00021369,4]
[365674217,1749826238400,-460.0,0.00021369,4]
[365674219,1749826238409,-1503.17,0.00021369,4]
[365674221,1749826238418,-460.0,0.00021369,4]
[365674223,1749826238427,-460.0,0.00021369,4]
[365674225,1749826238437,-460.0,0.00021369,4]
[365674227,1749826238446,-460.0,0.00021369,4]
[365674229,1749826238455,-460.0,0.00021369,4]
[365674231,1749826238464,-460.0,0.00021369,4]
[365674233,1749826238474,-460.0,0.00021369,4]
[365674235,1749826238483,-1801.51,0.00021369,4]
[365674237,1749826238492,-460.0,0.00021369,4]
[365674239,1749826238501,-460.0,0.00021369,4]
[365674241,1749826238510,-500.0,0.00021369,4]
[365674243,1749826238519,-460.0,0.00021369,4]
[365674245,1749826238528,-460.0,0.00021369,4]
[365674247,1749826238538,-460.0,0.00021369,4]
[365674249,1749826238547,-676.01,0.00021369,4]
[365674251,1749826238557,-460.0,0.00021369,4]
[365674253,1749826238566,-460.0,0.00021369,4]
[365674255,1749826238576,-668.56,0.00021369,4]
[365674257,1749826238585,-460.0,0.00021369,4]
[365674258,1749826238594,-460.0,0.00021369,4]
[365674260,1749826238603,-460.0,0.00021369,4]
[365674262,1749826238613,-1356.31,0.00021369,4]
[365674264,1749826238622,-460.0,0.00021369,4]
[365674266,1749826238630,-460.0,0.00021369,4]
[365674268,1749826238639,-460.0,0.00021369,4]
[365674270,1749826238649,-460.0,0.00021369,4]
[365674272,1749826238659,-460.0,0.00021369,4]
[365674273,1749826238668,-2133.31,0.00021369,4]
[365674274,1749826238677,-300.0,0.00021369,4]
[365674276,1749826238686,-460.0,0.00021369,4]
[365674278,1749826238695,-1037.02,0.00021369,4]
[365674280,1749826238704,-460.0,0.00021369,4]
[365674282,1749826238713,-460.0,0.00021369,4]
[365674284,1749826238723,-993.62,0.00021369,4]
[365674286,1749826238733,-460.0,0.00021369,4]
[365674288,1749826238742,-460.0,0.00021369,4]
[365674290,1749826238752,-618.38,0.00021369,4]
[365674293,1749826238764,-460.0,0.00021369,4]
[365674295,1749826238774,-460.0,0.00021369,4]
[365674297,1749826238783,-460.0,0.00021369,4]
[365674299,1749826238793,-1134.76,0.00021369,4]
[365674301,1749826238803,-460.0,0.00021369,2]
[365674303,1749826238813,-460.0,0.00021369,4]
[365674305,1749826238823,-1471.45,0.00021369,4]
[365674307,1749826238833,-1777.83,0.00021369,4]
[365674309,1749826238843,-447.50819112,0.00021549,2]
[365674311,1749826238852,-500.0,0.00021622,2]
[365674313,1749826238862,-500.0,0.00021622,2]
[365674315,1749826238872,-500.0,0.00021622,2]
[365674317,1749826238882,-160.0,0.00021628,2]
[365674319,1749826238891,-280.49,0.00021633,3]
[365674321,1749826238901,-420.73,0.00021633,3]
[365674323,1749826238911,-210.37,0.00021633,3]
[365674325,1749826238924,-631.13,0.00021633,3]
[365674327,1749826238934,-500.0,0.00021642,2]
[365674329,1749826238943,-500.0,0.00021642,2]
[365674331,1749826238953,-500.0,0.00021642,2]
[365674333,1749826238963,-500.0,0.00021642,2]
[365674335,1749826238972,-500.0,0.00021642,2]
[365674337,1749826238981,-500.0,0.00021642,2]
[365674339,1749826238991,-500.0,0.00021642,2]
[365674341,1749826239002,-500.0,0.00021642,2]
[365674343,1749826239012,-603.45283902,0.00021642,2]
[365674345,1749826239022,-500.0,0.00021642,2]
[365674348,1749826239031,-500.0,0.00021642,2]
[365674349,1749826239040,-500.0,0.00021642,2]
[365674351,1749826239050,-500.0,0.00021642,2]
[365674353,1749826239059,-357.82754744,0.00021642,2]
[365674355,1749826239068,-260.0,0.00021643,4]
[365674357,1749826239077,-460.0,0.00021643,4]
[365674359,1749826239086,-346.86,0.00021643,4]
[365674361,1749826239095,-536.41,0.00021643,4]
[365674363,1749826239106,-280.0,0.00021643,4]
[365674365,1749826239115,-460.0,0.00021643,4]
[365674367,1749826239125,-280.0,0.00021643,4]
[365674369,1749826239134,-280.0,0.00021643,4]
[365674371,1749826239143,-300.0,0.00021643,4]
[365674373,1749826239152,-460.0,0.00021643,4]
[365674375,1749826239162,-280.0,0.00021643,4]
[365674377,1749826239171,-460.0,0.00021643,4]
[365674379,1749826239180,-460.0,0.00021643,4]
[365674381,1749826239190,-460.0,0.00021643,4]
[365674384,1749826239199,-634.8,0.00021643,4]
[365674385,1749826239209,-460.0,0.00021643,4]
[365674386,1749826239219,-1503.17,0.00021643,4]
[365674387,1749826239323,-280.0,0.00021643,4]
[365674388,1749826239333,-460.0,0.00021643,4]
[365674389,1749826239342,-460.0,0.00021643,4]
[365674390,1749826239351,-460.0,0.00021643,4]
[365674391,1749826239361,-460.0,0.00021643,4]
[365674392,1749826239370,-460.0,0.00021643,4]
[365674393,1749826239379,-460.0,0.00021643,4]
[365674394,1749826239388,-1801.51,0.00021643,4]
[365674395,1749826239399,-460.0,0.00021643,4]
[365674396,1749826239408,-428.68,0.00021643,4]
[365674397,1749826239418,-500.0,0.00021643,4]
[365674398,1749826239427,-460.0,0.00021643,4]
[365674399,1749826239436,-460.0,0.00021643,4]
[365674400,1749826239445,-460.0,0.00021643,4]
[365674401,1749826239454,-676.01,0.00021643,4]
[365674404,1749826239463,-280.0,0.00021643,4]
[365674405,1749826239473,-280.0,0.00021643,4]
[365674406,1749826239483,-668.56,0.00021643,4]
[365674407,1749826239492,-460.0,0.00021643,4]
[365674408,1749826239501,-280.0,0.00021643,4]
[365674409,1749826239511,-460.0,0.00021643,4]
[365674410,1749826239520,-1356.31,0.00021643,4]
[365674411,1749826239529,-460.0,0.00021643,4]
[365674412,1749826239539,-448.25,0.00021643,4]
[365674413,1749826239548,-460.0,0.00021643,4]
[365674414,1749826239558,-280.0,0.00021643,4]
[365674415,1749826239567,-460.0,0.00021643,4]
[365674416,1749826239576,-2133.31,0.00021643,4]
[365674417,1749826239586,-460.0,0.00021643,4]
[365674418,1749826239595,-1037.02,0.00021643,4]
[365674419,1749826239607,-300.0,0.00021643,4]
[365674420,1749826239616,-460.0,0.00021643,4]
[365674421,1749826239626,-993.62,0.00021643,4]
[365674422,1749826239636,-240.0,0.00021643,4]
[365674423,1749826239645,-310.49,0.00021643,4]
[365674424,1749826239654,-618.38,0.00021643,4]
[365674425,1749826239664,-300.0,0.00021643,4]
[365674426,1749826239673,-300.0,0.00021643,4]
[365674427,1749826239682,-460.0,0.00021643,4]
[365674428,1749826239691,-1134.76,0.00021643,4]
[365674429,1749826239701,-460.0,0.00021643,2]
[365674430,1749826239712,-460.0,0.00021643,4]
[365674431,1749826239721,-1471.45,0.00021643,4]
[365674432,1749826239731,-1777.83,0.00021643,4]
[365674433,1749826239740,-183.35058372,0.0002165,2]
[365674434,1749826239750,-500.0,0.00021805,2]
[365674435,1749826239759,-684.65464584,0.0002181,2]
[365674436,1749826239769,-420.0,0.00021829,2]
[365674437,1749826239780,-151.1861261,0.00021861,2]
[365674439,1749826239789,-891.95514948,0.000219,6]
[365674441,1749826239799,-1062.64,0.00021907,3]
[365674443,1749826239808,-13310.07562572,0.0002191,2]
[365674445,1749826239818,-200.0,0.00021917,2]
[365674447,1749826239828,-460.0,0.00021917,4]
[365674449,1749826239837,-276.4,0.00021917,4]
[365674451,1749826239846,-460.0,0.00021917,4]
[365674452,1749826239855,-460.0,0.00021917,4]
[365674455,1749826239864,-460.0,0.00021917,4]
[365674457,1749826239873,-460.0,0.00021917,4]
[365674459,1749826239883,-634.8,0.00021917,4]
[365674461,1749826239893,-460.0,0.00021917,4]
[365674463,1749826239902,-1503.17,0.00021917,4]
[365674465,1749826239911,-460.0,0.00021917,4]
[365674467,1749826239924,-460.0,0.00021917,4]
[365674469,1749826239934,-460.0,0.00021917,4]
[365674471,1749826239943,-460.0,0.00021917,4]
[365674473,1749826239952,-280.0,0.00021917,4]
[365674475,1749826239962,-460.0,0.00021917,4]
[365674477,1749826239971,-1801.51,0.00021917,4]
[365674479,1749826239981,-460.0,0.00021917,4]
[365674481,1749826239991,-460.0,0.00021917,4]
[365674483,1749826240000,-500.19,0.00021917,4]
[365674485,1749826240010,-460.0,0.00021917,4]
[365674487,1749826240019,-676.01,0.00021917,4]
[365674489,1749826240029,-668.56,0.00021917,4]
[365674491,1749826240038,-460.0,0.00021917,4]
[365674493,1749826240048,-460.0,0.00021917,4]
[365674495,1749826240057,-1356.31,0.00021917,4]
[365674497,1749826240066,-460.0,0.00021917,4]
[365674499,1749826240075,-460.0,0.00021917,4]
[365674501,1749826240085,-460.0,0.00021917,4]
[365674503,1749826240095,-2133.31,0.00021917,4]
[365674505,1749826240105,-460.0,0.00021917,4]
[365674507,1749826240115,-1037.02,0.00021917,4]
[365674509,1749826240124,-460.0,0.00021917,4]
[365674511,1749826240134,-993.62,0.00021917,4]
[365674513,1749826240147,-618.38,0.00021917,4]
[365674515,1749826240157,-460.0,0.00021917,4]
[365674517,1749826240167,-1134.76,0.00021917,4]
[365674519,1749826240176,-460.0,0.00021917,2]
[365674521,1749826240187,-460.0,0.00021917,4]
[365674523,1749826240198,-1471.45,0.00021917,4]
[365674525,1749826240207,-1777.83,0.00021917,4]
[365674527,1749826240216,-846.81977898,0.00021918,60]
[365674529,1749826240226,-283.90234346,0.00021927,2]
[365674531,1749826240235,-469.74367343,0.00021945,2]
[365674533,1749826240245,-160.0,0.00022,2]
[365674535,1749826240254,-171.0,0.00022,2]
[365674537,1749826240262,-891.95514923,0.00022003,6]
[365674540,1749826240272,-500.0,0.00022005,2]
[365674541,1749826240282,-500.0,0.00022005,2]
[365674544,1749826240291,-632.10063231,0.00022005,2]
[365674545,1749826240301,-299.0,0.00022034,2]
[365674547,1749826240310,-623.0,0.00022069,2]
[365674550,1749826240319,-506.45617297,0.00022081,2]
[365674552,1749826240329,-500.0,0.00022081,2]
[365674554,1749826240338,-503.20737064,0.00022081,2]
[365674556,1749826240347,-500.0,0.00022081,2]
[365674558,1749826240358,-500.0,0.00022081,2]
[365674559,1749826240367,-500.0,0.00022081,2]
[365674561,1749826240376,-500.0,0.00022081,2]
[365674563,1749826240385,-447.50819112,0.00022104,2]
[365674566,1749826240395,-891.95514923,0.00022107,6]
[365674568,1749826240404,-623.0,0.00022113,2]
[365674570,1749826240414,-623.0,0.00022119,2]
[365674572,1749826240424,-160.0,0.00022119,2]
[365674574,1749826240433,-229.78555783,0.00022119,2]
[365674576,1749826240442,-160.0,0.00022119,2]
[365674577,1749826240451,-844.94977992,0.00022119,2]
[365674579,1749826240460,-160.0,0.00022119,2]
[365674582,1749826240469,-160.0,0.00022119,2]
[365674584,1749826240479,-835.28007164,0.00022119,2]
[365674586,1749826240488,-160.0,0.00022119,2]
[365674588,1749826240497,-424.32678023,0.00022119,2]
[365674590,1749826240506,-160.0,0.00022119,2]
[365674592,1749826240515,-23234.24844159,0.00022123,2]
[365674594,1749826240524,-502.66042553,0.0002217,2]
[365674596,1749826240533,-537.978401,0.0002217,2]
[365674597,1749826240542,-500.0,0.0002217,2]
[365674600,1749826240551,-460.0,0.00022191,4]
[365674601,1749826240560,-460.0,0.00022191,4]
[365674603,1749826240568,-460.0,0.00022191,4]
[365674605,1749826240577,-460.0,0.00022191,4]
[365674607,1749826240586,-634.8,0.00022191,4]
[365674609,1749826240595,-460.0,0.00022191,4]
[365674611,1749826240605,-1503.17,0.00022191,4]
[365674614,1749826240615,-460.0,0.00022191,4]
[365674615,1749826240624,-460.0,0.00022191,4]
[365674617,1749826240633,-460.0,0.00022191,4]
[365674620,1749826240643,-460.0,0.00022191,4]
[365674622,1749826240652,-460.0,0.00022191,4]
[365674624,1749826240661,-1801.51,0.00022191,4]
[365674626,1749826240671,-460.0,0.00022191,4]
[365674628,1749826240680,-454.64,0.00022191,4]
[365674629,1749826240689,-240.53,0.00022191,4]
[365674631,1749826240699,-676.01,0.00022191,4]
[365674634,1749826240708,-668.56,0.00022191,4]
[365674636,1749826240718,-440.0,0.00022191,4]
[365674637,1749826240727,-460.0,0.00022191,4]
[365674639,1749826240736,-1356.31,0.00022191,4]
[365674641,1749826240745,-460.0,0.00022191,4]
[365674643,1749826240755,-460.0,0.00022191,4]
[365674645,1749826240763,-2133.31,0.00022191,4]
[365674647,1749826240773,-460.0,0.00022191,4]
[365674649,1749826240782,-1037.02,0.00022191,4]
[365674651,1749826240792,-460.0,0.00022191,4]
[365674653,1749826240801,-993.62,0.00022191,4]
[365674655,1749826240811,-618.38,0.00022191,4]
[365674657,1749826240821,-460.0,0.00022191,4]
[365674659,1749826240830,-1134.76,0.00022191,4]
[365674660,1749826240839,-460.0,0.00022191,2]
[365674662,1749826240848,-280.0,0.00022191,4]
[365674664,1749826240859,-1471.45,0.00022191,4]
[365674666,1749826240869,-1777.83,0.00022191,4]
[365674668,1749826240878,-112834.860044,0.000222,5]
[365674669,1749826240888,-891.95514923,0.0002221,6]
[365674671,1749826240897,-500.0,0.00022223,2]
[365674673,1749826240907,-415.62725749,0.00022223,2]
[365674675,1749826240918,-365.0,0.00022224,2]
[365674677,1749826240930,-160.0,0.00022265,3]
[365674679,1749826240940,-684.65464584,0.00022278,2]
[365674681,1749826240954,-891.95514923,0.00022314,7]
[365674683,1749826240975,-509.04374065,0.00022352,2]
[365674685,1749826240988,-1688.0,0.00022378,2]
[365674687,1749826240999,-151.0,0.00022378,2]
[365674689,1749826241009,-207.4,0.00022378,2]
[365674691,1749826241020,-5000.0,0.00022378,2]
[365674693,1749826241030,-2849.00792924,0.00022378,2]
[365674694,1749826241039,-500.0,0.00022378,2]
[365674696,1749826241048,-500.0,0.00022378,2]
[365674698,1749826241057,-500.0,0.00022378,2]
[365674700,1749826241067,-500.0,0.00022378,2]
[365674702,1749826241076,-500.0,0.00022378,2]
[365674704,1749826241086,-500.0,0.00022378,2]
[365674706,1749826241095,-500.0,0.00022378,2]
[365674707,1749826241105,-500.0,0.00022378,2]
[365674709,1749826241115,-500.0,0.00022378,2]
[365674711,1749826241124,-500.0,0.00022378,2]
[365674713,1749826241133,-500.0,0.00022378,2]
[365674715,1749826241143,-500.0,0.00022378,2]
[365674717,1749826241153,-500.0,0.00022378,2]
[365674719,1749826241162,-500.0,0.00022378,2]
[365674721,1749826241171,-500.0,0.00022378,2]
[365674722,1749826241181,-500.0,0.00022378,2]
[365674724,1749826241191,-500.0,0.00022378,2]
[365674726,1749826241200,-500.0,0.00022378,2]
[365674728,1749826241210,-500.0,0.00022378,2]
[365674730,1749826241219,-500.0,0.00022378,2]
[365674732,1749826241230,-500.0,0.00022378,2]
[365674734,1749826241239,-500.0,0.00022378,2]
[365674736,1749826241249,-500.0,0.00022378,2]
[365674738,1749826241258,-500.0,0.00022378,2]
[365674740,1749826241267,-176.41705849,0.00022378,2]
[365674749,1749826241352,-500.0,0.00022378,2]
[365674751,1749826241371,-500.0,0.00022378,2]
[365674753,1749826241380,-500.0,0.00022378,2]
[365674755,1749826241390,-447.0,0.00022408,2]
[365674757,1749826241400,-623.0,0.0002241,2]
[365674759,1749826241410,-891.95514923,0.00022417,7]
[365674761,1749826241419,-609.48434413,0.00022433,2]
[365674763,1749826241428,-153.0,0.00022436,2]
[365674765,1749826241437,-153.0,0.00022436,2]
[365674766,1749826241447,-153.0,0.00022436,2]
[365674768,1749826241456,-153.0,0.00022436,2]
[365674770,1749826241465,-153.0,0.00022438,2]
[365674772,1749826241474,-153.0,0.00022438,2]
[365674774,1749826241483,-153.0,0.00022439,2]
[365674776,1749826241492,-460.0,0.00022465,4]
[365674778,1749826241501,-460.0,0.00022465,4]
[365674779,1749826241511,-460.0,0.00022465,4]
[365674781,1749826241521,-460.0,0.00022465,4]
[365674783,1749826241530,-634.8,0.00022465,4]
[365674785,1749826241539,-460.0,0.00022465,4]
[365674787,1749826241548,-1503.17,0.00022465,4]
[365674789,1749826241558,-460.0,0.00022465,4]
[365674791,1749826241567,-460.0,0.00022465,4]
[365674793,1749826241576,-460.0,0.00022465,4]
[365674794,1749826241586,-460.0,0.00022465,4]
[365674796,1749826241595,-583.24,0.00022465,4]
[365674798,1749826241604,-1801.51,0.00022465,4]
[365674800,1749826241615,-460.0,0.00022465,4]
[365674802,1749826241624,-676.01,0.00022465,4]
[365674804,1749826241633,-668.56,0.00022465,4]
[365674806,1749826241643,-460.0,0.00022465,4]
[365674808,1749826241652,-1356.31,0.00022465,4]
[365674810,1749826241661,-460.0,0.00022465,4]
[365674811,1749826241670,-460.0,0.00022465,4]
[365674813,1749826241679,-2133.31,0.00022465,4]
[365674815,1749826241688,-460.0,0.00022465,4]
[365674817,1749826241698,-1037.02,0.00022465,4]
[365674819,1749826241707,-460.0,0.00022465,4]
[365674821,1749826241717,-993.62,0.00022465,4]
[365674823,1749826241726,-618.38,0.00022465,4]